bitfinex/quotes_ETHUSD_20250930
["timestamp","ask_amount","ask_price","bid_price","bid_amount"]
[1759200121784,5.98765822,4215.0,4214.9,14.6184]
[1759200121984,5.98765822,4215.0,4214.9,17.3194]
[1759200122594,9.18575822,4215.0,4214.9,14.6184]
[1759200122805,9.78452404,4215.0,4214.9,17.3204]
[1759200123492,3.0,4214.9,4213.8,3.09034735]
[1759200123689,5.86325822,4214.2,4212.8,2.282]
[1759200123894,5.86325822,4213.9,4213.4,2.37338016]
[1759200124084,5.86325822,4213.9,4213.8,14.5]
[1759200124284,5.81325822,4213.9,4213.8,17.3204]
[1759200124484,5.81325822,4213.9,4213.8,14.6184]
[1759200124702,5.81325822,4213.9,4213.8,17.3204]
[1759200124703,5.93665822,4213.9,4213.8,17.3204]
[1759200125116,9.35863724,4213.9,4213.8,17.202]
[1759200126027,12.35863724,4213.9,4213.8,17.202]
[1759200126629,12.35863724,4213.9,4213.8,2.702]
[1759200126837,2.37342827,4213.4,4212.8,0.002]
[1759200127122,5.86325822,4212.9,4212.8,0.002]
[1759200127424,5.86325822,4212.9,4212.8,2.8234]
[1759200127841,5.86325822,4212.9,4212.8,0.1204]
[1759200127991,8.23692006,4212.9,4212.8,0.1204]
[1759200128196,12.61946742,4212.9,4212.8,2.8244]
[1759200128615,10.24580558,4212.9,4212.8,2.8244]
[1759200128825,8.98665822,4212.9,4212.8,2.8244]
[1759200129038,8.86325822,4212.9,4212.8,2.8244]
[1759200129328,11.23692006,4212.9,4212.8,2.8244]
[1759200129831,8.86325822,4212.9,4212.8,2.8244]
[1759200130618,11.23692006,4212.9,4212.8,2.8244]
[1759200130817,11.23692006,4212.9,4212.8,17.3244]
[1759200131322,8.86325822,4212.9,4212.8,17.3244]
[1759200131528,11.23692006,4212.9,4212.8,17.3244]
[1759200133624,11.36032006,4212.9,4212.8,17.3244]
[1759200133827,11.23692006,4212.9,4212.8,17.3244]
[1759200134128,8.86325822,4212.9,4212.8,17.3244]
[1759200135128,11.23692006,4212.9,4212.8,17.3244]
[1759200135732,11.23692006,4212.9,4212.8,17.206]
[1759200136829,8.86325822,4212.9,4212.8,17.206]
[1759200137132,11.23692006,4212.9,4212.8,17.206]
[1759200138538,11.23692006,4212.9,4212.8,2.706]
[1759200139038,11.23692006,4212.9,4212.8,17.206]
[1759200139834,11.23692006,4212.9,4212.8,14.502]
[1759200140137,11.23692006,4212.9,4212.8,17.204]
[1759200140435,8.86325822,4212.9,4212.8,17.204]
[1759200141241,11.23692006,4212.9,4212.8,17.204]
[1759200141462,3.0,4212.9,4212.8,17.4461]
[1759200141638,3.0,4212.9,4212.8,17.8768]
[1759200142140,3.0,4212.9,4212.8,17.4461]
[1759200142342,3.0,4212.9,4212.8,17.204]
[1759200142515,5.37366184,4212.9,4212.8,17.204]
[1759200143552,3.0,4212.9,4212.8,17.204]
[1759200144829,3.0,4212.9,4212.8,2.704]
[1759200145027,5.37366184,4212.9,4212.8,2.704]
[1759200145241,5.37366184,4212.9,4212.8,14.502]
[1759200145443,6.86994891,4212.9,4212.8,2.703]
[1759200145623,7.06804891,4212.9,4212.8,2.703]
[1759200145820,7.06804891,4212.9,4212.8,0.002]
[1759200146061,7.06804891,4212.9,4212.8,2.703]
[1759200147859,6.74654891,4212.9,4212.8,2.703]
[1759200149155,6.86994891,4212.9,4212.8,2.703]
[1759200149458,7.06804891,4212.9,4212.8,2.703]
[1759200150228,6.86994891,4212.9,4212.8,2.703]
[1759200152457,6.74654891,4212.9,4212.8,2.703]
[1759200152753,6.86994891,4212.9,4212.8,2.703]
[1759200153728,6.74654891,4212.9,4212.8,2.703]
[1759200158375,13.65603905,4212.9,4212.8,2.703]
[1759200160364,13.65603905,4212.9,4212.8,2.701]
[1759200166576,13.65603905,4212.9,4212.8,2.7]
[1759200168344,13.65603905,4212.9,4212.8,2.699]
[1759200169131,6.74654891,4212.9,4212.8,2.699]
[1759200169336,6.74654891,4212.9,4212.8,3.3683]
[1759200169757,6.74654891,4212.9,4212.8,2.699]
[1759200173762,5.37366184,4212.9,4212.8,2.699]
[1759200173938,5.37366184,4212.9,4212.8,0.002]
[1759200174138,5.69516184,4212.9,4212.8,0.002]
[1759200174345,6.40930047,4212.9,4212.8,0.002]
[1759200174540,7.9903753,4212.9,4212.8,0.002]
[1759200174861,7.7922753,4212.9,4212.8,0.002]
[1759200175462,7.6688753,4212.9,4212.8,0.002]
[1759200176381,7.6688753,4212.9,4212.8,0.6713]
[1759200176382,6.95473667,4212.9,4212.8,0.6713]
[1759200177347,5.37366184,4212.9,4212.8,0.6713]
[1759200178694,5.37366184,4212.9,4212.8,3.3683]
[1759200180077,5.37366184,4212.9,4212.8,2.699]
[1759200180485,5.37366184,4212.9,4212.8,0.002]
[1759200180787,5.37366184,4212.9,4212.8,2.699]
[1759200180965,6.92258293,4212.9,4212.8,2.699]
[1759200181755,8.03608293,4212.9,4212.8,0.002]
[1759200182067,7.71458293,4212.9,4212.8,0.002]
[1759200183388,8.42873517,4212.9,4212.8,0.002]
[1759200184006,7.63673517,4212.9,4212.8,0.002]
[1759200184296,5.37366184,4212.9,4212.8,0.6713]
[1759200186055,2.37326751,4213.6,4212.8,0.6713]
[1759200186268,2.37348186,4213.3,4212.9,0.6693]
[1759200186595,2.37359204,4213.1,4213.0,0.6693]
[1759200187102,3.0,4213.2,4212.8,0.002]
[1759200187321,9.28315198,4212.9,4212.8,0.002]
[1759200187512,12.28315198,4212.9,4212.8,2.7]
[1759200188153,12.28315198,4212.9,4212.8,0.002]
[1759200188444,12.40655198,4212.9,4212.8,2.7]
[1759200188630,13.83470691,4212.9,4212.8,2.7]
[1759200189654,14.75010691,4212.9,4212.8,0.002]
[1759200189810,14.94820691,4212.9,4212.8,0.002]
[1759200190245,14.75010691,4212.9,4212.8,0.002]
[1759200190642,14.62670691,4212.9,4212.8,0.002]
[1759200191259,14.94820691,4212.9,4212.8,0.002]
[1759200194469,14.75010691,4212.9,4212.8,0.002]
[1759200194675,14.62670691,4212.9,4212.8,0.002]
[1759200195436,14.62670691,4212.9,4212.8,0.7033]
[1759200197541,15.34085915,4212.9,4212.8,0.7033]
[1759200197742,14.54885915,4212.9,4212.8,0.7033]
[1759200198045,5.37366184,4212.9,4212.8,0.7033]
[1759200198245,2.37366184,4212.9,4212.8,0.7033]
[1759200198649,2.37365912,4213.0,4212.8,0.7033]
[1759200198952,2.37365912,4213.0,4212.9,3.4003]
[1759200200175,0.1184,4213.1,4212.9,3.4003]
[1759200200341,2.49181489,4213.4,4213.0,0.7013]
[1759200200680,5.37349283,4213.2,4213.1,0.7013]
[1759200201090,5.37366184,4212.9,4212.8,0.2482]
[1759200201389,5.37366184,4212.9,4212.8,2.701]
[1759200201599,5.37366184,4212.9,4212.8,3.4023]
[1759200203180,2.37366184,4212.9,4212.8,3.4023]
[1759200204445,2.8602244,4212.9,4212.8,0.002]
[1759200204649,2.8602244,4212.9,4212.8,0.243]
[1759200205285,2.8602244,4212.9,4212.8,0.002]
[1759200205514,2.8602244,4212.9,4212.8,0.786]
[1759200205672,12.89311454,4212.9,4212.8,0.002]
[1759200205877,13.09121454,4212.9,4212.8,0.002]
[1759200207301,12.89311454,4212.9,4212.8,0.002]
[1759200208206,13.60726338,4212.9,4212.8,0.002]
[1759200208702,13.48386338,4212.9,4212.8,0.002]
[1759200209782,6.57437324,4212.9,4212.8,0.002]
[1759200211290,6.89587324,4212.9,4212.8,0.002]
[1759200211490,6.69777324,4212.9,4212.8,0.002]
[1759200211692,6.57437324,4212.9,4212.8,0.002]
[1759200213994,6.57437324,4212.9,4212.8,0.7033]
[1759200214190,6.08781068,4212.9,4212.8,0.7033]
[1759200217021,6.08781068,4212.9,4212.8,0.002]
[1759200219624,6.21121068,4212.9,4212.8,0.002]
[1759200220294,12.08286945,4212.9,4212.8,0.002]
[1759200221233,11.95946945,4212.9,4212.8,0.002]
[1759200221400,13.42442277,4212.9,4212.8,0.002]
[1759200221831,14.21642277,4212.9,4212.8,0.002]
[1759200222016,14.33982277,4212.9,4212.8,0.002]
[1759200222215,14.21642277,4212.9,4212.8,0.002]
[1759200225133,14.53792277,4212.9,4212.8,0.002]
[1759200225429,14.33982277,4212.9,4212.8,0.002]
[1759200226531,14.21642277,4212.9,4212.8,0.002]
[1759200226736,14.53792277,4212.9,4212.8,0.002]
[1759200227029,14.21642277,4212.9,4212.8,0.002]
[1759200228521,14.53792277,4212.9,4212.8,0.002]
[1759200230035,14.33982277,4212.9,4212.8,0.002]
[1759200231720,14.53792277,4212.9,4212.8,0.002]
[1759200233209,14.21642277,4212.9,4212.8,0.002]
[1759200235941,14.21642277,4212.9,4212.8,0.6808]
[1759200236516,14.21642277,4212.9,4212.8,0.23]
[1759200236842,14.21642277,4212.9,4212.8,0.002]
[1759200237239,14.21642277,4212.9,4212.8,0.6808]
[1759200237444,11.95946945,4212.9,4212.8,0.6808]
[1759200239127,6.08781068,4212.9,4212.8,0.6808]
[1759200239337,11.95946945,4212.9,4212.8,0.6808]
[1759200243360,6.08781068,4212.9,4212.8,0.6808]
[1759200243536,3.08781068,4212.9,4212.8,0.6808]
[1759200243861,3.08781068,4212.9,4212.8,3.3788]
[1759200244168,11.24532061,4212.9,4212.8,0.002]
[1759200244362,11.95940145,4212.9,4212.8,0.6808]
[1759200244759,13.39269654,4212.9,4212.8,0.002]
[1759200244942,14.18469654,4212.9,4212.8,0.002]
[1759200245335,14.30809654,4212.9,4212.8,0.002]
[1759200246444,14.18469654,4212.9,4212.8,0.002]
[1759200249636,14.18469654,4212.9,4212.8,0.251]
[1759200250042,14.18469654,4212.9,4212.8,0.002]
[1759200250664,16.68569654,4212.9,4212.8,0.002]
[1759200250874,14.18469654,4212.9,4212.8,0.002]
[1759200258690,14.18469654,4212.9,4212.8,0.2295]
[1759200259086,14.18469654,4212.9,4212.8,0.002]
[1759200259601,14.50619654,4212.9,4212.8,0.002]
[1759200259794,14.18469654,4212.9,4212.8,0.002]
[1759200260195,14.18469654,4212.9,4212.8,0.6858]
[1759200260608,14.18469654,4212.9,4212.8,0.2295]
[1759200263706,14.18469654,4212.9,4212.8,0.002]
[1759200264012,14.30809654,4212.9,4212.8,0.002]
[1759200265432,3.16594359,4212.4,4211.9,1e-08]
[1759200265592,17.90948658,4212.0,4211.9,1e-08]
[1759200265791,20.41048658,4212.0,4211.9,1e-08]
[1759200265999,11.24582781,4212.0,4211.9,0.68380001]
[1759200266315,11.34106806,4212.0,4211.9,0.68380001]
[1759200266514,12.96268383,4212.0,4211.9,0.68380001]
[1759200268306,11.34106806,4212.0,4211.9,0.68380001]
[1759200270815,13.84206806,4212.0,4211.9,1e-08]
[1759200271117,13.84206806,4212.0,4211.9,0.22750001]
[1759200271905,5.46940929,4212.0,4211.9,0.45630001]
[1759200272100,5.46940929,4212.0,4211.9,0.68380001]
[1759200279306,5.46940929,4212.0,4211.9,1e-08]
[1759200279703,5.46940929,4212.0,4211.9,0.68950001]
[1759200280708,11.34106806,4212.0,4211.9,0.68950001]
[1759200281523,5.46940929,4212.0,4211.9,0.68950001]
[1759200287622,5.58780929,4212.0,4211.9,0.68950001]
[1759200289136,3.09524025,4212.0,4211.9,2.47895001]
[1759200289431,3.0,4212.0,4211.9,2.24455]
[1759200290731,3.0,4212.0,4211.9,4.6187754]
[1759200291339,3.001,4212.0,4211.9,4.8531754]
[1759200292425,3.001,4212.0,4211.9,3.0637254]
[1759200292608,3.001,4212.0,4211.9,17.5637254]
[1759200293017,0.001,4212.0,4211.9,17.5637254]
[1759200295447,0.001,4212.0,4211.9,20.2647254]
[1759200298749,0.001,4212.0,4211.9,17.5637254]
[1759200299044,0.001,4212.0,4211.9,22.2695712]
[1759200300638,0.001,4212.0,4211.9,23.0615712]
[1759200300864,0.001,4212.0,4211.9,23.1799712]
[1759200301271,0.001,4212.5,4212.4,2.37394359]
[1759200301546,0.001,4212.5,4212.4,6.16594359]
[1759200301880,0.001,4212.5,4212.4,27.19644026]
[1759200302041,0.001,4212.5,4212.4,27.67018128]
[1759200302381,0.001,4212.5,4212.4,27.76534109]
[1759200303038,0.001,4212.5,4212.4,24.76534109]
[1759200304180,0.001,4212.5,4212.4,27.76534109]
[1759200306392,0.001,4212.9,4212.6,0.792]
[1759200306538,0.001,4213.9,4212.8,3.792]
[1759200306744,0.001,4213.9,4213.8,3.16515487]
[1759200306944,0.001,4213.9,4213.8,20.37015487]
[1759200307266,0.001,4213.9,4213.8,21.05965487]
[1759200307464,0.001,4213.9,4213.8,21.15479386]
[1759200307763,0.001,4213.9,4213.8,23.16063966]
[1759200309382,0.001,4213.9,4213.8,22.28780067]
[1759200310044,0.001,4213.9,4213.8,21.58400067]
[1759200310248,0.001,4213.9,4213.8,21.58700067]
[1759200311373,0.001,4213.9,4213.8,21.70540067]
[1759200311576,0.001,4213.9,4213.8,21.70440067]
[1759200315167,0.001,4213.9,4213.8,16.6242458]
[1759200315367,0.3535,4213.9,4213.8,14.6184]
[1759200315567,0.001,4213.9,4213.8,17.3244]
[1759200316275,0.001,4213.9,4213.8,19.69755487]
[1759200316679,0.001,4213.9,4213.8,20.35505487]
[1759200316885,0.001,4213.9,4213.8,19.69755487]
[1759200317180,0.001,4213.9,4213.8,21.9273368]
[1759200317562,0.001,4213.9,4213.8,22.1543368]
[1759200317949,0.001,4213.9,4213.8,21.9273368]
[1759200318255,0.001,4213.9,4213.8,19.69755487]
[1759200319079,0.001,4213.9,4213.8,17.3254]
[1759200319584,0.001,4213.9,4213.8,20.23765487]
[1759200319975,0.001,4213.9,4213.8,19.58115487]
[1759200320277,0.1544,4213.9,4213.8,17.208]
[1759200321073,0.001,4213.9,4213.8,17.208]
[1759200321468,0.1544,4213.9,4213.8,17.208]
[1759200321860,0.1544,4213.9,4213.8,14.5]
[1759200322183,0.3535,4213.9,4213.8,17.209]
[1759200322385,0.1544,4213.9,4213.8,17.209]
[1759200322879,0.3535,4213.9,4213.8,17.208]
[1759200323382,0.1544,4213.9,4213.8,17.208]
[1759200324488,0.3535,4213.9,4213.8,17.208]
[1759200324687,5.37317213,4213.8,4212.8,2.37371819]
[1759200324982,0.1534,4213.7,4213.1,2.37350593]
[1759200325184,0.1534,4213.7,4213.2,2.708]
[1759200325387,0.1534,4213.6,4213.2,2.708]
[1759200325793,0.1534,4213.5,4213.2,2.708]
[1759200325989,0.1534,4213.4,4213.0,2.3736028]
[1759200326194,0.1534,4213.4,4213.1,2.708]
[1759200327315,0.3525,4213.6,4213.1,2.708]
[1759200327503,0.1534,4213.5,4213.1,2.708]
[1759200328316,0.3525,4213.4,4213.2,2.708]
[1759200328618,2.37339821,4213.4,4213.3,2.708]
[1759200328817,6.44806537,4213.4,4213.3,2.708]
[1759200328996,4.07466716,4213.4,4213.3,2.708]
[1759200329197,3.3525,4213.4,4213.3,2.708]
[1759200330086,5.72588016,4213.4,4213.3,2.708]
[1759200331188,5.72588016,4213.4,4212.8,0.002]
[1759200331189,2.37343649,4213.3,4212.8,0.002]
[1759200331535,5.37366184,4212.9,4212.8,0.002]
[1759200331734,7.15137475,4212.9,4212.8,0.002]
[1759200332021,7.50387475,4212.9,4212.8,0.002]
[1759200335900,8.21803039,4212.9,4212.8,0.002]
[1759200337222,7.86553039,4212.9,4212.8,0.002]
[1759200337921,8.01893039,4212.9,4212.8,0.002]
[1759200338231,4.86553039,4212.9,4212.8,0.002]
[1759200338397,2.37366184,4212.9,4212.8,0.002]
[1759200340286,2.37366184,4212.9,4212.8,2.712]
[1759200340699,5.72616184,4212.9,4212.8,0.002]
[1759200341225,5.37366184,4212.9,4212.8,0.002]
[1759200342217,6.17556624,4212.9,4212.8,0.002]
[1759200344403,12.04605338,4212.9,4212.8,0.002]
[1759200346032,12.39855338,4212.9,4212.8,0.002]
[1759200347911,12.04605338,4212.9,4212.8,0.002]
[1759200348530,12.19945338,4212.9,4212.8,0.002]
[1759200349318,12.04605338,4212.9,4212.8,0.002]
[1759200350020,14.54705338,4212.9,4212.8,0.002]
[1759200350227,12.04605338,4212.9,4212.8,0.002]
[1759200352429,12.39855338,4212.9,4212.8,0.002]
[1759200352809,13.11269881,4212.9,4212.8,0.002]
[1759200353008,12.76019881,4212.9,4212.8,0.002]
[1759200353410,13.11269881,4212.9,4212.8,0.002]
[1759200353631,12.76019881,4212.9,4212.8,0.002]
[1759200353830,13.11269881,4212.9,4212.8,0.002]
[1759200356850,6.88971167,4212.9,4212.8,0.002]
[1759200357141,6.88971167,4212.9,4212.8,0.6773]
[1759200357142,11.24414898,4212.9,4212.8,0.6773]
[1759200357340,11.24414898,4212.9,4212.8,0.002]
[1759200359241,11.95827742,4212.9,4212.8,0.002]
[1759200360814,13.10277742,4212.9,4212.8,0.002]
[1759200361644,13.10277742,4212.9,4212.4,0.002]
[1759200361645,12.03637438,4212.5,4212.4,0.002]
[1759200361849,13.7892328,4212.5,4212.4,0.002]
[1759200362623,13.88446557,4212.5,4212.4,0.002]
[1759200364161,13.09246557,4212.5,4212.4,0.002]
[1759200364464,13.09246557,4212.5,4212.4,0.6773]
[1759200365235,13.09246557,4212.5,4212.4,0.002]
[1759200365963,13.09246557,4212.5,4212.4,0.6773]
[1759200366337,13.09246557,4212.5,4212.4,0.002]
[1759200370142,5.46912001,4212.5,4212.4,0.7148]
[1759200370337,2.37377386,4212.8,4212.4,3.4228]
[1759200370542,2.37372311,4212.8,4212.5,0.73653887]
[1759200370745,0.001,4212.9,4212.6,15.2128]
[1759200371043,0.001,4212.9,4212.7,0.73653774]
[1759200371449,0.001,4212.9,4212.8,3.20491819]
[1759200371744,0.001,4212.9,4212.8,17.70491819]
[1759200373546,0.001,4212.9,4212.8,15.3312]
[1759200374250,0.001,4212.9,4212.8,18.0412]
[1759200374556,2.37466184,4212.9,4212.8,15.3312]
[1759200374755,2.37466184,4212.9,4212.8,18.0412]
[1759200375065,2.37466184,4212.9,4212.8,17.21]
[1759200376168,2.37388724,4212.5,4212.4,0.4762]
[1759200376368,2.37388724,4212.5,4212.4,3.4272]
[1759200376675,2.37388724,4212.5,4212.4,14.502]
[1759200376850,2.37388724,4212.5,4212.4,17.213]
[1759200377050,2.37388724,4212.5,4212.4,14.502]
[1759200377252,2.37388724,4212.5,4212.4,0.002]
[1759200377474,6.73570527,4212.5,4212.4,2.712]
[1759200377862,6.73570527,4212.5,4212.4,0.002]
[1759200378069,6.88910527,4212.5,4212.4,2.713]
[1759200378446,6.73570527,4212.5,4212.4,2.713]
[1759200380978,7.08820527,4212.5,4212.4,2.713]
[1759200382482,6.88910527,4212.5,4212.4,2.713]
[1759200382981,7.08820527,4212.5,4212.4,2.713]
[1759200383581,6.88910527,4212.5,4212.4,2.713]
[1759200383778,6.73570527,4212.5,4212.4,2.713]
[1759200383953,11.24437438,4212.5,4212.4,3.4272]
[1759200384157,11.24437438,4212.5,4212.4,2.713]
[1759200390776,5.37388724,4212.5,4212.4,3.4272]
[1759200398688,5.37388724,4212.5,4212.4,17.9272]
[1759200401684,5.37388724,4212.5,4212.4,3.4272]
[1759200402423,5.37388724,4212.5,4212.4,17.9272]
[1759200404225,3.0,4212.5,4212.4,17.9272]
[1759200404723,5.37388724,4212.5,4212.4,17.9272]
[1759200406194,5.37388724,4212.5,4212.4,17.213]
[1759200406528,5.37388724,4212.5,4212.4,2.713]
[1759200406948,5.37388724,4212.5,4212.4,3.384]
[1759200408635,3.0,4212.5,4212.4,3.40773943]
[1759200409616,3.0,4212.5,4212.4,0.002]
[1759200409795,6.75566448,4212.5,4212.4,2.707]
[1759200409996,5.37388724,4212.5,4212.4,3.136]
[1759200410192,5.37388724,4212.5,4212.4,2.707]
[1759200410950,5.49228724,4212.5,4212.4,2.707]
[1759200411309,5.49228724,4212.5,4212.4,2.949]
[1759200411533,5.37388724,4212.5,4212.4,3.378]
[1759200413555,5.37388724,4212.5,4212.4,2.707]
[1759200415252,5.37388724,4212.5,4212.4,17.207]
[1759200416357,3.0,4212.5,4212.4,17.878]
[1759200419485,5.37388724,4212.5,4212.4,17.878]
[1759200419629,3.0,4212.5,4212.4,17.878]
[1759200420352,5.37388724,4212.5,4212.4,17.878]
[1759200424974,5.37388724,4212.5,4212.4,17.207]
[1759200426591,5.37388724,4212.5,4212.4,17.449]
[1759200427025,6.50125372,4212.5,4212.4,0.002]
[1759200427287,6.50125372,4212.5,4212.4,2.706]
[1759200427857,6.50125372,4212.5,4212.4,0.002]
[1759200428376,6.59648422,4212.5,4212.4,0.002]
[1759200430686,6.24398422,4212.5,4212.4,0.002]
[1759200431082,6.24398422,4212.5,4212.4,2.708]
[1759200431287,5.46911774,4212.5,4212.4,3.3736]
[1759200431518,5.46911774,4212.5,4212.4,2.708]
[1759200431896,5.37388724,4212.5,4212.4,2.708]
[1759200432408,5.37388724,4212.5,4212.4,2.709]
[1759200432580,7.19215147,4212.5,4212.4,0.002]
[1759200433427,6.83965147,4212.5,4212.4,0.002]
[1759200433610,5.37388724,4212.5,4212.4,0.002]
[1759200435510,5.37388724,4212.5,4212.4,0.6844]
[1759200435812,5.37388724,4212.5,4212.4,0.002]
[1759200436610,5.37388724,4212.5,4212.4,0.2332]
[1759200436818,5.37388724,4212.5,4212.4,0.6844]
[1759200437019,5.37388724,4212.5,4212.4,0.002]
[1759200437198,5.37388724,4212.5,4212.4,0.6844]
[1759200438426,0.001,4212.8,4212.4,1.026314]
[1759200438635,0.001,4212.8,4212.5,0.70613887]
[1759200438801,2.37377718,4212.7,4212.6,2.708]
[1759200438996,2.37377718,4212.7,4212.6,3.3904]
[1759200440104,0.001,4212.8,4212.6,3.3904]
[1759200440315,0.001,4212.8,4212.6,2.708]
[1759200440530,0.001,4212.8,4212.7,0.6824]
[1759200440731,0.001,4212.8,4212.7,0.70613774]
[1759200440946,0.001,4212.8,4212.7,1.04775151]
[1759200441112,0.001,4212.8,4212.7,3.53992604]
[1759200441311,0.001,4212.8,4212.7,1.16615151]
[1759200444219,0.001,4212.8,4212.7,1.14241377]
[1759200444516,2.37471819,4212.8,4212.7,1.14241377]
[1759200444733,2.37471819,4212.8,4212.7,3.0566]
[1759200445109,2.37471819,4212.8,4212.7,3.5078]
[1759200445311,0.001,4212.8,4212.7,3.5078]
[1759200453249,0.001,4212.8,4212.7,0.1184]
[1759200453455,2.37471819,4212.8,4212.7,2.8234]
[1759200453654,0.001,4212.8,4212.7,2.8234]
[1759200454722,0.001,4212.8,4212.7,17.3234]
[1759200454923,2.37471819,4212.8,4212.7,17.3234]
[1759200457252,0.001,4212.8,4212.7,17.3234]
[1759200457460,0.001,4212.8,4212.7,18.0058]
[1759200460155,0.001,4212.8,4212.7,22.18035453]
[1759200460353,0.001,4212.8,4212.7,19.80658]
[1759200460556,2.37471819,4212.8,4212.7,14.6184]
[1759200460757,2.37471819,4212.8,4212.7,17.3224]
[1759200461360,0.001,4212.8,4212.7,17.3224]
[1759200461861,2.37471819,4212.8,4212.7,17.3224]
[1759200462051,0.001,4212.8,4212.7,17.3224]
[1759200463466,2.37471819,4212.8,4212.7,17.3224]
[1759200464166,0.001,4212.8,4212.7,17.3224]
[1759200464365,0.001,4212.8,4212.7,2.8224]
[1759200464771,2.37471819,4212.8,4212.7,17.3224]
[1759200465364,0.001,4212.8,4212.7,17.3224]
[1759200465572,2.37471819,4212.8,4212.7,17.3224]
[1759200467484,2.37377453,4212.7,4212.6,0.002]
[1759200467766,5.37377453,4212.7,4212.6,2.707]
[1759200467942,3.0,4212.7,4212.6,17.207]
[1759200468146,0.47593259,4212.8,4212.6,17.207]
[1759200468147,0.001,4212.8,4212.6,17.207]
[1759200468650,2.37472375,4212.8,4212.6,17.207]
[1759200470564,0.001,4212.8,4212.6,17.207]
[1759200471152,2.37473054,4212.8,4212.6,2.707]
[1759200471764,2.37473054,4212.8,4212.7,14.5]
[1759200472274,0.001,4212.8,4212.7,14.5]
[1759200473136,0.001,4212.8,4212.7,15.1633]
[1759200473944,0.001,4212.8,4212.7,14.7332]
[1759200474286,0.001,4212.8,4212.7,15.1633]
[1759200477470,0.001,4212.8,4212.7,15.2817]
[1759200479286,0.001,4212.8,4212.7,19.69193798]
[1759200480291,0.001,4212.8,4212.7,20.36553798]
[1759200480473,0.001,4212.8,4212.7,20.48393798]
[1759200481108,0.001,4212.8,4212.7,20.95170075]
[1759200481803,0.001,4212.8,4212.7,20.15970075]
[1759200482006,0.001,4212.8,4212.7,22.86470075]
[1759200483167,0.001,4212.8,4212.7,23.65670075]
[1759200487732,0.001,4213.3,4213.1,0.792]
[1759200488043,0.001,4213.3,4213.0,2.37357584]
[1759200488044,0.001,4213.3,4213.2,6.01162775]
[1759200488194,0.001,4213.3,4213.2,5.98789283]
[1759200488399,0.001,4213.3,4213.2,21.15119283]
[1759200491530,0.001,4213.4,4213.3,3.16543649]
[1759200491732,0.001,4213.7,4213.6,3.16526751]
[1759200491939,0.001,4213.7,4213.6,5.89300018]
[1759200492096,0.001,4213.7,4213.6,20.36926751]
[1759200492437,0.001,4213.7,4213.6,21.20166751]
[1759200493345,0.1991,4215.3,4214.9,2.37253552]
[1759200493547,0.1991,4215.8,4215.2,2.37236667]
[1759200493702,2.74268948,4218.3,4215.3,2.7277231]
[1759200493703,0.1991,4216.6,4215.3,2.7277231]
[1759200493904,0.3525,4216.5,4216.1,2.37186005]
[1759200494120,0.3525,4216.4,4216.2,2.705]
[1759200494313,0.3525,4216.3,4216.2,2.705]
[1759200494872,0.3525,4216.3,4216.2,17.205]
[1759200496466,0.2718,4216.8,4216.2,17.205]
[1759200496672,0.1534,4216.7,4216.5,0.1184]
[1759200496867,0.1991,4216.7,4216.6,2.704]
[1759200497068,2.37080975,4218.0,4216.8,2.37146605]
[1759200497069,0.1991,4217.3,4216.8,2.37146605]
[1759200497366,0.1991,4217.2,4216.9,17.2277141]
[1759200497572,0.3525,4217.1,4216.9,19.57540988]
[1759200497776,0.1534,4217.0,4216.9,19.57540988]
[1759200498276,0.1534,4217.0,4216.9,17.204]
[1759200499066,0.23708097,4217.9,4216.9,17.204]
[1759200499272,0.001,4217.2,4216.9,17.204]
[1759200499434,0.001,4217.2,4216.9,19.57535809]
[1759200499641,0.1544,4217.2,4217.0,2.37135404]
[1759200499842,0.1544,4217.2,4217.1,2.707]
[1759200500373,0.3535,4217.2,4217.1,2.706]
[1759200500761,0.1544,4217.2,4216.9,14.5]
[1759200500941,0.1534,4217.1,4217.0,2.706]
[1759200501641,0.1534,4217.1,4217.0,5.07735404]
[1759200502349,0.001,4217.2,4217.0,5.07735404]
[1759200503159,0.001,4217.2,4217.0,2.706]
[1759200503353,0.001,4217.2,4216.9,14.5]
[1759200503547,0.1544,4217.2,4217.0,2.705]
[1759200504275,0.1544,4217.2,4217.0,5.07633596]
[1759200504682,0.001,4217.2,4217.0,5.07633596]
[1759200505578,0.001,4217.2,4217.0,2.705]
[1759200506980,0.001,4217.2,4217.1,14.5]
[1759200508047,0.1544,4217.2,4217.1,17.204]
[1759200508252,0.001,4217.2,4217.1,19.57529781]
[1759200508683,0.001,4217.2,4217.1,20.26169781]
[1759200508852,0.001,4217.2,4217.1,22.01400299]
[1759200509054,0.001,4217.2,4217.1,22.13240299]
[1759200509984,0.001,4217.2,4217.1,19.42840299]
[1759200510200,0.001,4217.2,4217.1,22.13340299]
[1759200510373,0.001,4217.2,4217.1,22.92540299]
[1759200517160,0.001,4217.2,4217.1,23.07880299]
[1759200517865,0.001,4217.2,4217.1,20.37380299]
[1759200518066,0.001,4217.2,4217.1,25.35580299]
[1759200518600,0.001,4217.2,4217.1,23.07680299]
[1759200521672,0.001,4217.2,4217.1,20.37380299]
[1759200521878,0.001,4217.2,4217.1,23.07580299]
[1759200524086,0.001,4217.2,4217.1,22.28280299]
[1759200524597,0.001,4217.2,4217.1,19.58180299]
[1759200524818,0.001,4217.2,4217.1,21.59640299]
[1759200525020,0.001,4217.2,4217.1,19.13430299]
[1759200525213,0.001,4217.2,4217.1,22.13320299]
[1759200525987,0.001,4217.2,4217.1,18.74200299]